{"text_format":"1","workbook":"xlsx","n_sheets":5,"sheets":["Календарь","Пинарик","События","Нормы раб.времени","Праздники"],"not_rendered":{"charts":0,"images":1,"macros":1,"external_links":0,"defined_names":1,"comments":1,"pivot_tables":0},"unopened":[],"bounds":{"document_bytes":16777216,"sheet_cells":100000,"rows_first":2000,"rows_last":500,"rows_between":2000,"halvings":0,"cell_chars":16384,"cell_head_chars":4096},"cells_cut":0,"cells_raw":0,"read":"whole","date_system":"1900"}

{"sheet":"Календарь","index":0,"n_rows":44,"n_cols":39,"rows_kept":44,"cut":false,"hidden":false,"merged":[[0,9,0,15],[24,1,25,7],[24,9,25,15],[24,17,25,23],[35,1,36,7],[35,9,36,15],[35,17,36,23],[2,1,3,7],[2,9,3,15],[2,17,3,23],[13,1,14,7],[13,9,14,15],[13,17,14,23]]}
[null,null,null,null,null,null,null,null,null,2018,null,null,null,null,null,null,null,null,null,null,null,null,null,null,{"$f":"\"Сегодня \"&TEXT(TODAY(),\"ДД МММ ГГГГ\")&\" \"&IFERROR(VLOOKUP(TODAY(),Праздники!A1:B136,2,0),\" \")","v":"Сегодня 31 дек 2017  "},null,null,null,{"$f":"\"Мероприятия на \"&TEXT(AD1,\"ДДД\")","v":"Мероприятия на Вт"},"2018-01-02",null,null,null,"Настройки"]
["I квартал"]
[null,"2018-01-01",null,null,null,null,null,null,null,"2018-02-01",null,null,null,null,null,null,null,"2018-03-01",null,null,null,null,null,null,null,null,null,0.999999999999998]
[null,null,null,null,null,null,null,null,null,null,null,null,null,null,null,null,null,null,null,null,null,null,null,null,null,null,null,"01:00:00"]
[null,"пн","вт","ср","чт","пт","сб","вс",null,"пн","вт","ср","чт","пт","сб","вс",null,"пн","вт","ср","чт","пт","сб","вс",null,null,null,"02:00:00"]
[{"$f":"IF($AM$7,WEEKNUM(MAX(B6:H6),2),\"\")","v":1},{"$f":"IF(MONTH(DATE(YEAR(B3),MONTH(B3),1))\n<>MONTH(DATE(YEAR(B3),MONTH(B3),1)-\n(WEEKDAY(DATE(YEAR(B3),MONTH(B3),1),2)-1)\n+{0;1;2;3;4;5}*7+{1,2,3,4,5,6,7}-1),\" \",\nDATE(YEAR(B3),MONTH(B3),1)-\n(WEEKDAY(DATE(YEAR(B3),MONTH(B3),1),2)-1)\n+{0;1;2;3;4;5}*7+{1,2,3,4,5,6,7}-1)","v":"2018-01-01"},"2018-01-02","2018-01-03","2018-01-04","2018-01-05","2018-01-06","2018-01-07",{"$f":"IF($AM$7,WEEKNUM(MAX(J6:P6),2),\"\")","v":5},{"$f":"IF(MONTH(DATE(YEAR(J3),MONTH(J3),1))\n<>MONTH(DATE(YEAR(J3),MONTH(J3),1)-\n(WEEKDAY(DATE(YEAR(J3),MONTH(J3),1),2)-1)\n+{0;1;2;3;4;5}*7+{1,2,3,4,5,6,7}-1),\" \",\nDATE(YEAR(J3),MONTH(J3),1)-\n(WEEKDAY(DATE(YEAR(J3),MONTH(J3),1),2)-1)\n+{0;1;2;3;4;5}*7+{1,2,3,4,5,6,7}-1)","v":" "}," "," ","2018-02-01","2018-02-02","2018-02-03","2018-02-04",{"$f":"IF($AM$7,WEEKNUM(MAX(R6:X6),2),\"\")","v":9},{"$f":"IF(MONTH(DATE(YEAR(R3),MONTH(R3),1))\n<>MONTH(DATE(YEAR(R3),MONTH(R3),1)-\n(WEEKDAY(DATE(YEAR(R3),MONTH(R3),1),2)-1)\n+{0;1;2;3;4;5}*7+{1,2,3,4,5,6,7}-1),\" \",\nDATE(YEAR(R3),MONTH(R3),1)-\n(WEEKDAY(DATE(YEAR(R3),MONTH(R3),1),2)-1)\n+{0;1;2;3;4;5}*7+{1,2,3,4,5,6,7}-1)","v":" "}," "," ","2018-03-01","2018-03-02","2018-03-03","2018-03-04",null,null,null,"03:00:00","Доесть селедку под шубой"]
[{"$f":"IF($AM$7,WEEKNUM(MAX(B7:H7),2),\"\")","v":2},"2018-01-08","2018-01-09","2018-01-10","2018-01-11","2018-01-12","2018-01-13","2018-01-14",{"$f":"IF($AM$7,WEEKNUM(MAX(J7:P7),2),\"\")","v":6},"2018-02-05","2018-02-06","2018-02-07","2018-02-08","2018-02-09","2018-02-10","2018-02-11",{"$f":"IF($AM$7,WEEKNUM(MAX(R7:X7),2),\"\")","v":10},"2018-03-05","2018-03-06","2018-03-07","2018-03-08","2018-03-09","2018-03-10","2018-03-11",null,null,null,"04:00:00",null,null,null,null,null,null,null,null,null,null,true]
[{"$f":"IF($AM$7,WEEKNUM(MAX(B8:H8),2),\"\")","v":3},"2018-01-15","2018-01-16","2018-01-17","2018-01-18","2018-01-19","2018-01-20","2018-01-21",{"$f":"IF($AM$7,WEEKNUM(MAX(J8:P8),2),\"\")","v":7},"2018-02-12","2018-02-13","2018-02-14","2018-02-15","2018-02-16","2018-02-17","2018-02-18",{"$f":"IF($AM$7,WEEKNUM(MAX(R8:X8),2),\"\")","v":11},"2018-03-12","2018-03-13","2018-03-14","2018-03-15","2018-03-16","2018-03-17","2018-03-18",null,null,null,"05:00:00"]
[{"$f":"IF($AM$7,WEEKNUM(MAX(B9:H9),2),\"\")","v":4},"2018-01-22","2018-01-23","2018-01-24","2018-01-25","2018-01-26","2018-01-27","2018-01-28",{"$f":"IF($AM$7,WEEKNUM(MAX(J9:P9),2),\"\")","v":8},"2018-02-19","2018-02-20","2018-02-21","2018-02-22","2018-02-23","2018-02-24","2018-02-25",{"$f":"IF($AM$7,WEEKNUM(MAX(R9:X9),2),\"\")","v":12},"2018-03-19","2018-03-20","2018-03-21","2018-03-22","2018-03-23","2018-03-24","2018-03-25",null,null,null,"06:00:00"]
[{"$f":"IF($AM$7,WEEKNUM(MAX(B10:H10),2),\"\")","v":5},"2018-01-29","2018-01-30","2018-01-31"," "," "," "," ",{"$f":"IF($AM$7,WEEKNUM(MAX(J10:P10),2),\"\")","v":9},"2018-02-26","2018-02-27","2018-02-28"," "," "," "," ",{"$f":"IF($AM$7,WEEKNUM(MAX(R10:X10),2),\"\")","v":13},"2018-03-26","2018-03-27","2018-03-28","2018-03-29","2018-03-30","2018-03-31"," ",null,null,null,"07:00:00"]
[null," "," "," "," "," "," "," ",null," "," "," "," "," "," "," ",null," "," "," "," "," "," "," ",null,null,null,"08:00:00"]
[null,null,null,null,null,null,null,null,null,null,null,null,null,null,null,null,null,null,null,null,null,null,null,null,null,null,null,"09:00:00","Доесть оливье"]
["II квартал",null,null,null,null,null,null,null,null,null,null,null,null,null,null,null,null,null,null,null,null,null,null,null,null,null,null,"10:00:00"]
[null,"2018-04-01",null,null,null,null,null,null,null,"2018-05-01",null,null,null,null,null,null,null,"2018-06-01",null,null,null,null,null,null,null,null,null,"11:00:00"]
[null,null,null,null,null,null,null,null,null,null,null,null,null,null,null,null,null,null,null,null,null,null,null,null,null,null,null,"12:00:00","Погулять с ребенком"]
[null,"пн","вт","ср","чт","пт","сб","вс",null,"пн","вт","ср","чт","пт","сб","вс",null,"пн","вт","ср","чт","пт","сб","вс",null,null,null,"13:00:00"]
[{"$f":"IF($AM$7,WEEKNUM(MAX(B17:H17),2),\"\")","v":13},{"$f":"IF(MONTH(DATE(YEAR(B14),MONTH(B14),1))\n<>MONTH(DATE(YEAR(B14),MONTH(B14),1)-\n(WEEKDAY(DATE(YEAR(B14),MONTH(B14),1),2)-1)\n+{0;1;2;3;4;5}*7+{1,2,3,4,5,6,7}-1),\" \",\nDATE(YEAR(B14),MONTH(B14),1)-\n(WEEKDAY(DATE(YEAR(B14),MONTH(B14),1),2)-1)\n+{0;1;2;3;4;5}*7+{1,2,3,4,5,6,7}-1)","v":" "}," "," "," "," "," ","2018-04-01",{"$f":"IF($AM$7,WEEKNUM(MAX(J17:P17),2),\"\")","v":18},{"$f":"IF(MONTH(DATE(YEAR(J14),MONTH(J14),1))\n<>MONTH(DATE(YEAR(J14),MONTH(J14),1)-\n(WEEKDAY(DATE(YEAR(J14),MONTH(J14),1),2)-1)\n+{0;1;2;3;4;5}*7+{1,2,3,4,5,6,7}-1),\" \",\nDATE(YEAR(J14),MONTH(J14),1)-\n(WEEKDAY(DATE(YEAR(J14),MONTH(J14),1),2)-1)\n+{0;1;2;3;4;5}*7+{1,2,3,4,5,6,7}-1)","v":" "},"2018-05-01","2018-05-02","2018-05-03","2018-05-04","2018-05-05","2018-05-06",{"$f":"IF($AM$7,WEEKNUM(MAX(R17:X17),2),\"\")","v":22},{"$f":"IF(MONTH(DATE(YEAR(R14),MONTH(R14),1))\n<>MONTH(DATE(YEAR(R14),MONTH(R14),1)-\n(WEEKDAY(DATE(YEAR(R14),MONTH(R14),1),2)-1)\n+{0;1;2;3;4;5}*7+{1,2,3,4,5,6,7}-1),\" \",\nDATE(YEAR(R14),MONTH(R14),1)-\n(WEEKDAY(DATE(YEAR(R14),MONTH(R14),1),2)-1)\n+{0;1;2;3;4;5}*7+{1,2,3,4,5,6,7}-1)","v":" "}," "," "," ","2018-06-01","2018-06-02","2018-06-03",null,null,null,"14:00:00"]
[14,"2018-04-02","2018-04-03","2018-04-04","2018-04-05","2018-04-06","2018-04-07","2018-04-08",{"$f":"IF($AM$7,WEEKNUM(MAX(J18:P18),2),\"\")","v":19},"2018-05-07","2018-05-08","2018-05-09","2018-05-10","2018-05-11","2018-05-12","2018-05-13",{"$f":"IF($AM$7,WEEKNUM(MAX(R18:X18),2),\"\")","v":23},"2018-06-04","2018-06-05","2018-06-06","2018-06-07","2018-06-08","2018-06-09","2018-06-10",null,null,null,"15:00:00"]
[15,"2018-04-09","2018-04-10","2018-04-11","2018-04-12","2018-04-13","2018-04-14","2018-04-15",{"$f":"IF($AM$7,WEEKNUM(MAX(J19:P19),2),\"\")","v":20},"2018-05-14","2018-05-15","2018-05-16","2018-05-17","2018-05-18","2018-05-19","2018-05-20",{"$f":"IF($AM$7,WEEKNUM(MAX(R19:X19),2),\"\")","v":24},"2018-06-11","2018-06-12","2018-06-13","2018-06-14","2018-06-15","2018-06-16","2018-06-17",null,null,null,"16:00:00","Написать план на 2018 год"]
[16,"2018-04-16","2018-04-17","2018-04-18","2018-04-19","2018-04-20","2018-04-21","2018-04-22",{"$f":"IF($AM$7,WEEKNUM(MAX(J20:P20),2),\"\")","v":21},"2018-05-21","2018-05-22","2018-05-23","2018-05-24","2018-05-25","2018-05-26","2018-05-27",{"$f":"IF($AM$7,WEEKNUM(MAX(R20:X20),2),\"\")","v":25},"2018-06-18","2018-06-19","2018-06-20","2018-06-21","2018-06-22","2018-06-23","2018-06-24",null,null,null,"17:00:00"]
[17,"2018-04-23","2018-04-24","2018-04-25","2018-04-26","2018-04-27","2018-04-28","2018-04-29",{"$f":"IF($AM$7,WEEKNUM(MAX(J21:P21),2),\"\")","v":22},"2018-05-28","2018-05-29","2018-05-30","2018-05-31"," "," "," ",{"$f":"IF($AM$7,WEEKNUM(MAX(R21:X21),2),\"\")","v":26},"2018-06-25","2018-06-26","2018-06-27","2018-06-28","2018-06-29","2018-06-30"," ",null,null,null,"18:00:00"]
[18,"2018-04-30"," "," "," "," "," "," ",null," "," "," "," "," "," "," ",null," "," "," "," "," "," "," ",null,null,null,"19:00:00","Сходить в кино"]
[null,null,null,null,null,null,null,null,null,null,null,null,null,null,null,null,null,null,null,null,null,null,null,null,null,null,null,"20:00:00"]
["III квартал",null,null,null,null,null,null,null,null,null,null,null,null,null,null,null,null,null,null,null,null,null,null,null,null,null,null,"21:00:00"]
[null,"2018-07-01",null,null,null,null,null,null,null,"2018-08-01",null,null,null,null,null,null,null,"2018-09-01",null,null,null,null,null,null,null,null,null,"22:00:00"]
[null,null,null,null,null,null,null,null,null,null,null,null,null,null,null,null,null,null,null,null,null,null,null,null,null,null,null,"23:00:00"]
[null,"пн","вт","ср","чт","пт","сб","вс",null,"пн","вт","ср","чт","пт","сб","вс",null,"пн","вт","ср","чт","пт","сб","вс"]
[{"$f":"IF($AM$7,WEEKNUM(MAX(B28:H28),2),\"\")","v":26},{"$f":"IF(MONTH(DATE(YEAR(B25),MONTH(B25),1))\n<>MONTH(DATE(YEAR(B25),MONTH(B25),1)-\n(WEEKDAY(DATE(YEAR(B25),MONTH(B25),1),2)-1)\n+{0;1;2;3;4;5}*7+{1,2,3,4,5,6,7}-1),\" \",\nDATE(YEAR(B25),MONTH(B25),1)-\n(WEEKDAY(DATE(YEAR(B25),MONTH(B25),1),2)-1)\n+{0;1;2;3;4;5}*7+{1,2,3,4,5,6,7}-1)","v":" "}," "," "," "," "," ","2018-07-01",{"$f":"IF($AM$7,WEEKNUM(MAX(J28:P28),2),\"\")","v":31},{"$f":"IF(MONTH(DATE(YEAR(J25),MONTH(J25),1))\n<>MONTH(DATE(YEAR(J25),MONTH(J25),1)-\n(WEEKDAY(DATE(YEAR(J25),MONTH(J25),1),2)-1)\n+{0;1;2;3;4;5}*7+{1,2,3,4,5,6,7}-1),\" \",\nDATE(YEAR(J25),MONTH(J25),1)-\n(WEEKDAY(DATE(YEAR(J25),MONTH(J25),1),2)-1)\n+{0;1;2;3;4;5}*7+{1,2,3,4,5,6,7}-1)","v":" "}," ","2018-08-01","2018-08-02","2018-08-03","2018-08-04","2018-08-05",{"$f":"IF($AM$7,WEEKNUM(MAX(R28:X28),2),\"\")","v":35},{"$f":"IF(MONTH(DATE(YEAR(R25),MONTH(R25),1))\n<>MONTH(DATE(YEAR(R25),MONTH(R25),1)-\n(WEEKDAY(DATE(YEAR(R25),MONTH(R25),1),2)-1)\n+{0;1;2;3;4;5}*7+{1,2,3,4,5,6,7}-1),\" \",\nDATE(YEAR(R25),MONTH(R25),1)-\n(WEEKDAY(DATE(YEAR(R25),MONTH(R25),1),2)-1)\n+{0;1;2;3;4;5}*7+{1,2,3,4,5,6,7}-1)","v":" "}," "," "," "," ","2018-09-01","2018-09-02"]
[27,"2018-07-02","2018-07-03","2018-07-04","2018-07-05","2018-07-06","2018-07-07","2018-07-08",{"$f":"IF($AM$7,WEEKNUM(MAX(J29:P29),2),\"\")","v":32},"2018-08-06","2018-08-07","2018-08-08","2018-08-09","2018-08-10","2018-08-11","2018-08-12",{"$f":"IF($AM$7,WEEKNUM(MAX(R29:X29),2),\"\")","v":36},"2018-09-03","2018-09-04","2018-09-05","2018-09-06","2018-09-07","2018-09-08","2018-09-09"]
[28,"2018-07-09","2018-07-10","2018-07-11","2018-07-12","2018-07-13","2018-07-14","2018-07-15",{"$f":"IF($AM$7,WEEKNUM(MAX(J30:P30),2),\"\")","v":33},"2018-08-13","2018-08-14","2018-08-15","2018-08-16","2018-08-17","2018-08-18","2018-08-19",{"$f":"IF($AM$7,WEEKNUM(MAX(R30:X30),2),\"\")","v":37},"2018-09-10","2018-09-11","2018-09-12","2018-09-13","2018-09-14","2018-09-15","2018-09-16"]
[29,"2018-07-16","2018-07-17","2018-07-18","2018-07-19","2018-07-20","2018-07-21","2018-07-22",{"$f":"IF($AM$7,WEEKNUM(MAX(J31:P31),2),\"\")","v":34},"2018-08-20","2018-08-21","2018-08-22","2018-08-23","2018-08-24","2018-08-25","2018-08-26",{"$f":"IF($AM$7,WEEKNUM(MAX(R31:X31),2),\"\")","v":38},"2018-09-17","2018-09-18","2018-09-19","2018-09-20","2018-09-21","2018-09-22","2018-09-23"]
[30,"2018-07-23","2018-07-24","2018-07-25","2018-07-26","2018-07-27","2018-07-28","2018-07-29",{"$f":"IF($AM$7,WEEKNUM(MAX(J32:P32),2),\"\")","v":35},"2018-08-27","2018-08-28","2018-08-29","2018-08-30","2018-08-31"," "," ",{"$f":"IF($AM$7,WEEKNUM(MAX(R32:X32),2),\"\")","v":39},"2018-09-24","2018-09-25","2018-09-26","2018-09-27","2018-09-28","2018-09-29","2018-09-30"]
[31,"2018-07-30","2018-07-31"," "," "," "," "," ",null," "," "," "," "," "," "," ",null," "," "," "," "," "," "," "]
[]
["IV квартал"]
[null,"2018-10-01",null,null,null,null,null,null,null,"2018-11-01",null,null,null,null,null,null,null,"2018-12-01"]
[]
[null,"пн","вт","ср","чт","пт","сб","вс",null,"пн","вт","ср","чт","пт","сб","вс",null,"пн","вт","ср","чт","пт","сб","вс"]
[{"$f":"IF($AM$7,WEEKNUM(MAX(B39:H39),2),\"\")","v":40},{"$f":"IF(MONTH(DATE(YEAR(B36),MONTH(B36),1))\n<>MONTH(DATE(YEAR(B36),MONTH(B36),1)-\n(WEEKDAY(DATE(YEAR(B36),MONTH(B36),1),2)-1)\n+{0;1;2;3;4;5}*7+{1,2,3,4,5,6,7}-1),\" \",\nDATE(YEAR(B36),MONTH(B36),1)-\n(WEEKDAY(DATE(YEAR(B36),MONTH(B36),1),2)-1)\n+{0;1;2;3;4;5}*7+{1,2,3,4,5,6,7}-1)","v":"2018-10-01"},"2018-10-02","2018-10-03","2018-10-04","2018-10-05","2018-10-06","2018-10-07",{"$f":"IF($AM$7,WEEKNUM(MAX(J39:P39),2),\"\")","v":44},{"$f":"IF(MONTH(DATE(YEAR(J36),MONTH(J36),1))\n<>MONTH(DATE(YEAR(J36),MONTH(J36),1)-\n(WEEKDAY(DATE(YEAR(J36),MONTH(J36),1),2)-1)\n+{0;1;2;3;4;5}*7+{1,2,3,4,5,6,7}-1),\" \",\nDATE(YEAR(J36),MONTH(J36),1)-\n(WEEKDAY(DATE(YEAR(J36),MONTH(J36),1),2)-1)\n+{0;1;2;3;4;5}*7+{1,2,3,4,5,6,7}-1)","v":" "}," "," ","2018-11-01","2018-11-02","2018-11-03","2018-11-04",{"$f":"IF($AM$7,WEEKNUM(MAX(R39:X39),2),\"\")","v":48},{"$f":"IF(MONTH(DATE(YEAR(R36),MONTH(R36),1))\n<>MONTH(DATE(YEAR(R36),MONTH(R36),1)-\n(WEEKDAY(DATE(YEAR(R36),MONTH(R36),1),2)-1)\n+{0;1;2;3;4;5}*7+{1,2,3,4,5,6,7}-1),\" \",\nDATE(YEAR(R36),MONTH(R36),1)-\n(WEEKDAY(DATE(YEAR(R36),MONTH(R36),1),2)-1)\n+{0;1;2;3;4;5}*7+{1,2,3,4,5,6,7}-1)","v":" "}," "," "," "," ","2018-12-01","2018-12-02"]
[{"$f":"IF($AM$7,WEEKNUM(MAX(B40:H40),2),\"\")","v":41},"2018-10-08","2018-10-09","2018-10-10","2018-10-11","2018-10-12","2018-10-13","2018-10-14",{"$f":"IF($AM$7,WEEKNUM(MAX(J40:P40),2),\"\")","v":45},"2018-11-05","2018-11-06","2018-11-07","2018-11-08","2018-11-09","2018-11-10","2018-11-11",49,"2018-12-03","2018-12-04","2018-12-05","2018-12-06","2018-12-07","2018-12-08","2018-12-09"]
[{"$f":"IF($AM$7,WEEKNUM(MAX(B41:H41),2),\"\")","v":42},"2018-10-15","2018-10-16","2018-10-17","2018-10-18","2018-10-19","2018-10-20","2018-10-21",{"$f":"IF($AM$7,WEEKNUM(MAX(J41:P41),2),\"\")","v":46},"2018-11-12","2018-11-13","2018-11-14","2018-11-15","2018-11-16","2018-11-17","2018-11-18",50,"2018-12-10","2018-12-11","2018-12-12","2018-12-13","2018-12-14","2018-12-15","2018-12-16"]
[{"$f":"IF($AM$7,WEEKNUM(MAX(B42:H42),2),\"\")","v":43},"2018-10-22","2018-10-23","2018-10-24","2018-10-25","2018-10-26","2018-10-27","2018-10-28",{"$f":"IF($AM$7,WEEKNUM(MAX(J42:P42),2),\"\")","v":47},"2018-11-19","2018-11-20","2018-11-21","2018-11-22","2018-11-23","2018-11-24","2018-11-25",51,"2018-12-17","2018-12-18","2018-12-19","2018-12-20","2018-12-21","2018-12-22","2018-12-23"]
[{"$f":"IF($AM$7,WEEKNUM(MAX(B43:H43),2),\"\")","v":44},"2018-10-29","2018-10-30","2018-10-31"," "," "," "," ",{"$f":"IF($AM$7,WEEKNUM(MAX(J43:P43),2),\"\")","v":48},"2018-11-26","2018-11-27","2018-11-28","2018-11-29","2018-11-30"," "," ",52,"2018-12-24","2018-12-25","2018-12-26","2018-12-27","2018-12-28","2018-12-29","2018-12-30"]
[null," "," "," "," "," "," "," ",null," "," "," "," "," "," "," ",53,"2018-12-31"," "," "," "," "," "," "]

{"sheet":"Пинарик","index":1,"n_rows":26,"n_cols":32,"rows_kept":26,"cut":false,"hidden":false,"merged":[[38,0,38,7],[36,0,36,7],[37,0,37,7],[25,20,25,21],[25,18,25,19],[25,16,25,17],[34,0,34,7],[35,0,35,7],[25,30,25,31],[25,28,25,29],[25,26,25,27],[25,24,25,25],[25,22,25,23],[33,0,33,7],[25,14,25,15],[25,12,25,13],[25,10,25,11],[25,8,25,9],[26,0,26,7],[27,0,27,7],[25,0,25,7],[28,0,28,7],[29,0,29,7],[30,0,30,7],[31,0,31,7],[32,0,32,7]]}
["Календарик - пинарик",null,null,null,null,null,null,null,null,null,null,null,null,null,null,null,null,null,null,null,null,null,null,null,null,null,null,null,null,null,null,"Инструкция:  time-shkola.ru/archives/211"]
["2018 год"]
["янв",{"$f":"DATE(2018,ROW()-2,COLUMN()-1)","v":"2018-01-01"},{"$f":"DATE(2018,ROW()-2,COLUMN()-1)","v":"2018-01-02"},"2018-01-03","2018-01-04","2018-01-05","2018-01-06","2018-01-07","2018-01-08","2018-01-09","2018-01-10","2018-01-11","2018-01-12","2018-01-13","2018-01-14","2018-01-15","2018-01-16","2018-01-17","2018-01-18","2018-01-19","2018-01-20","2018-01-21","2018-01-22","2018-01-23","2018-01-24","2018-01-25","2018-01-26","2018-01-27","2018-01-28","2018-01-29","2018-01-30","2018-01-31"]
["фев",{"$f":"DATE(2018,ROW()-2,COLUMN()-1)","v":"2018-02-01"},"2018-02-02","2018-02-03","2018-02-04","2018-02-05","2018-02-06","2018-02-07","2018-02-08","2018-02-09","2018-02-10","2018-02-11","2018-02-12","2018-02-13","2018-02-14","2018-02-15","2018-02-16",{"$f":"DATE(2018,ROW()-2,COLUMN()-1)","v":"2018-02-17"},"2018-02-18","2018-02-19","2018-02-20","2018-02-21","2018-02-22","2018-02-23","2018-02-24","2018-02-25","2018-02-26","2018-02-27","2018-02-28"]
["мар","2018-03-01","2018-03-02","2018-03-03","2018-03-04","2018-03-05","2018-03-06","2018-03-07","2018-03-08","2018-03-09","2018-03-10","2018-03-11","2018-03-12","2018-03-13","2018-03-14","2018-03-15","2018-03-16","2018-03-17","2018-03-18","2018-03-19","2018-03-20","2018-03-21","2018-03-22","2018-03-23","2018-03-24","2018-03-25","2018-03-26","2018-03-27","2018-03-28","2018-03-29","2018-03-30","2018-03-31"]
["апр","2018-04-01","2018-04-02","2018-04-03","2018-04-04","2018-04-05","2018-04-06","2018-04-07","2018-04-08","2018-04-09","2018-04-10","2018-04-11","2018-04-12","2018-04-13","2018-04-14","2018-04-15","2018-04-16","2018-04-17","2018-04-18","2018-04-19","2018-04-20","2018-04-21","2018-04-22","2018-04-23","2018-04-24","2018-04-25","2018-04-26","2018-04-27","2018-04-28","2018-04-29","2018-04-30"]
["май","2018-05-01","2018-05-02","2018-05-03","2018-05-04","2018-05-05","2018-05-06","2018-05-07","2018-05-08","2018-05-09","2018-05-10","2018-05-11","2018-05-12","2018-05-13","2018-05-14","2018-05-15","2018-05-16","2018-05-17","2018-05-18","2018-05-19","2018-05-20","2018-05-21","2018-05-22","2018-05-23","2018-05-24","2018-05-25","2018-05-26","2018-05-27","2018-05-28","2018-05-29","2018-05-30","2018-05-31"]
["июн","2018-06-01","2018-06-02","2018-06-03","2018-06-04","2018-06-05","2018-06-06","2018-06-07","2018-06-08","2018-06-09","2018-06-10","2018-06-11","2018-06-12","2018-06-13","2018-06-14","2018-06-15","2018-06-16","2018-06-17","2018-06-18","2018-06-19","2018-06-20","2018-06-21","2018-06-22","2018-06-23","2018-06-24","2018-06-25","2018-06-26","2018-06-27","2018-06-28","2018-06-29","2018-06-30"]
["июл","2018-07-01","2018-07-02","2018-07-03","2018-07-04","2018-07-05","2018-07-06","2018-07-07","2018-07-08","2018-07-09","2018-07-10","2018-07-11","2018-07-12","2018-07-13","2018-07-14","2018-07-15","2018-07-16","2018-07-17","2018-07-18","2018-07-19","2018-07-20","2018-07-21","2018-07-22","2018-07-23","2018-07-24","2018-07-25","2018-07-26","2018-07-27","2018-07-28","2018-07-29","2018-07-30","2018-07-31"]
["авг","2018-08-01","2018-08-02","2018-08-03","2018-08-04","2018-08-05","2018-08-06","2018-08-07","2018-08-08","2018-08-09","2018-08-10","2018-08-11","2018-08-12","2018-08-13","2018-08-14","2018-08-15","2018-08-16","2018-08-17","2018-08-18","2018-08-19","2018-08-20","2018-08-21","2018-08-22","2018-08-23","2018-08-24","2018-08-25","2018-08-26","2018-08-27","2018-08-28","2018-08-29","2018-08-30","2018-08-31"]
["сен","2018-09-01","2018-09-02","2018-09-03","2018-09-04","2018-09-05","2018-09-06","2018-09-07","2018-09-08","2018-09-09","2018-09-10","2018-09-11","2018-09-12","2018-09-13","2018-09-14","2018-09-15","2018-09-16","2018-09-17","2018-09-18","2018-09-19","2018-09-20","2018-09-21","2018-09-22","2018-09-23","2018-09-24","2018-09-25","2018-09-26","2018-09-27","2018-09-28","2018-09-29","2018-09-30"]
["окт","2018-10-01","2018-10-02","2018-10-03","2018-10-04","2018-10-05","2018-10-06","2018-10-07","2018-10-08","2018-10-09","2018-10-10","2018-10-11","2018-10-12","2018-10-13","2018-10-14","2018-10-15","2018-10-16","2018-10-17","2018-10-18","2018-10-19","2018-10-20","2018-10-21","2018-10-22","2018-10-23","2018-10-24","2018-10-25","2018-10-26","2018-10-27","2018-10-28","2018-10-29","2018-10-30","2018-10-31"]
["ноя","2018-11-01","2018-11-02","2018-11-03","2018-11-04","2018-11-05","2018-11-06","2018-11-07","2018-11-08","2018-11-09","2018-11-10","2018-11-11","2018-11-12","2018-11-13","2018-11-14","2018-11-15","2018-11-16","2018-11-17","2018-11-18","2018-11-19","2018-11-20","2018-11-21","2018-11-22","2018-11-23","2018-11-24","2018-11-25","2018-11-26","2018-11-27","2018-11-28","2018-11-29","2018-11-30"]
["дек","2018-12-01","2018-12-02","2018-12-03","2018-12-04","2018-12-05","2018-12-06","2018-12-07","2018-12-08","2018-12-09","2018-12-10","2018-12-11","2018-12-12","2018-12-13","2018-12-14","2018-12-15","2018-12-16","2018-12-17","2018-12-18","2018-12-19","2018-12-20","2018-12-21","2018-12-22","2018-12-23","2018-12-24","2018-12-25","2018-12-26","2018-12-27","2018-12-28","2018-12-29","2018-12-30","2018-12-31"]
[]
[]
["Прожитые годы"]
[1,2,3,4,5,6,7,8,9,10,11,12,13,14,15,16,17,18,19,20,21,22,23,24,25,26,27,28,29,30,31,32]
[33,34,35,36,37,38,39,40,41,42,43,44,45,46,47,48,49,50,51,52,53,54,55,56,57,58,59,60,61,62,63,64]
[65,66,67,68,69,70,71,72,73,74,75,76,77,78,79,80,81,82,83,84,85,86,87,88,89,90,91,92,93,94,95,96]
[]
[]
[]
[]
["Цели на 2018 год"]
["Чего я хочу",null,null,null,null,null,null,null,"янв",null,"фев",null,"мар",null,"апр",null,"май",null,"июн",null,"июл",null,"авг",null,"сен",null,"окт",null,"ноя",null,"дек"]

{"sheet":"События","index":2,"n_rows":366,"n_cols":26,"rows_kept":366,"cut":false,"hidden":false,"merged":[]}
["Дата/Время","0:00","1:00","2:00","3:00","4:00","5:00","6:00","7:00","8:00","9:00","10:00","11:00","12:00","13:00","14:00","15:00","16:00","17:00","18:00","19:00","20:00","21:00","22:00","23:00","Итого событий"]
["2018-01-01","Встретить новый год!",null,null,null,null,null,null,null,null,null,null,null,null,null,null,null,null,null,null,null,null,null,null,null,{"$f":"COUNTA(B2:Y2)","v":1}]
["2018-01-02",null,null,null,"Доесть селедку под шубой",null,null,null,null,null,"Доесть оливье",null,null,"Погулять с ребенком",null,null,null,"Написать план на 2018 год",null,null,"Сходить в кино",null,null,null,null,{"$f":"COUNTA(B3:Y3)","v":5}]
["2018-01-03",null,null,null,null,null,null,null,null,null,null,null,null,null,null,null,null,null,null,null,null,null,null,null,null,0]
["2018-01-04",null,null,null,null,null,null,null,null,null,null,null,null,null,null,null,null,null,null,null,null,null,null,null,null,0]
["2018-01-05",null,null,null,null,null,null,null,null,null,null,null,null,null,null,null,null,null,null,null,null,null,null,null,null,0]
["2018-01-06",null,null,null,null,null,null,null,null,null,null,null,null,null,null,null,null,null,null,null,null,null,null,null,null,0]
["2018-01-07",null,null,null,null,null,null,null,null,null,null,null,null,null,null,null,null,null,null,null,null,null,null,null,null,0]
["2018-01-08",null,null,null,null,null,null,null,null,null,null,null,null,null,null,null,null,null,null,null,null,null,null,null,null,0]
["2018-01-09",null,null,null,null,null,null,null,null,null,null,null,null,null,null,null,null,null,null,null,null,null,null,null,null,0]
["2018-01-10",null,null,null,null,null,null,null,null,null,null,null,null,null,null,null,null,null,null,null,null,null,null,null,null,0]
["2018-01-11",null,null,null,null,null,null,null,null,null,null,null,null,null,null,null,null,null,null,null,null,null,null,null,null,0]
["2018-01-12",null,null,null,null,null,null,null,null,null,null,null,null,null,null,null,null,null,null,null,null,null,null,null,null,0]
["2018-01-13",null,null,null,null,null,null,null,null,null,null,null,null,null,null,null,null,null,null,null,null,null,null,null,null,0]
["2018-01-14",null,null,null,null,null,null,null,null,null,null,null,null,null,null,null,null,null,null,null,null,null,null,null,null,0]
["2018-01-15",null,null,null,null,null,null,null,null,null,null,null,null,null,null,null,null,null,null,null,null,null,null,null,null,0]
["2018-01-16",null,null,null,null,null,null,null,null,null,null,null,null,null,null,null,null,null,null,null,null,null,null,null,null,0]
["2018-01-17",null,null,null,null,null,null,null,null,null,null,null,null,null,null,null,null,null,null,null,null,null,null,null,null,0]
["2018-01-18",null,null,null,null,null,null,null,null,null,null,null,null,null,null,null,null,null,null,null,null,null,null,null,null,0]
["2018-01-19",null,null,null,null,null,null,null,null,null,null,null,null,null,null,null,null,null,null,null,null,null,null,null,null,0]
["2018-01-20",null,null,null,null,null,null,null,null,null,null,null,null,null,null,null,null,null,null,null,null,null,null,null,null,0]
["2018-01-21",null,null,null,null,null,null,null,null,null,null,null,null,null,null,null,null,null,null,null,null,null,null,null,null,0]
["2018-01-22",null,null,null,null,null,null,null,null,null,null,null,null,null,null,null,null,null,null,null,null,null,null,null,null,0]
["2018-01-23",null,null,null,null,null,null,null,null,null,null,null,null,null,null,null,null,null,null,null,null,null,null,null,null,0]
["2018-01-24",null,null,null,null,null,null,null,null,null,null,null,null,null,null,null,null,null,null,null,null,null,null,null,null,0]
["2018-01-25",null,null,null,null,null,null,null,null,null,null,null,null,null,null,null,null,null,null,null,null,null,null,null,null,0]
["2018-01-26",null,null,null,null,null,null,null,null,null,null,null,null,null,null,null,null,null,null,null,null,null,null,null,null,0]
["2018-01-27",null,null,null,null,null,null,null,null,null,null,null,null,null,null,null,null,null,null,null,null,null,null,null,null,0]
["2018-01-28",null,null,null,null,null,null,null,null,null,null,null,null,null,null,null,null,null,null,null,null,null,null,null,null,0]
["2018-01-29",null,null,null,null,null,null,null,null,null,null,null,null,null,null,null,null,null,null,null,null,null,null,null,null,0]
["2018-01-30",null,null,null,null,null,null,null,null,null,null,null,null,null,null,null,null,null,null,null,null,null,null,null,null,0]
["2018-01-31",null,null,null,null,null,null,null,null,null,null,null,null,null,null,null,null,null,null,null,null,null,null,null,null,0]
["2018-02-01",null,null,null,null,null,null,null,null,null,null,null,null,null,null,null,null,null,null,null,null,null,null,null,null,0]
["2018-02-02",null,null,null,null,null,null,null,null,null,null,null,null,null,null,null,null,null,null,null,null,null,null,null,null,0]
["2018-02-03",null,null,null,null,null,null,null,null,null,null,null,null,null,null,null,null,null,null,null,null,null,null,null,null,0]
["2018-02-04",null,null,null,null,null,null,null,null,null,null,null,null,null,null,null,null,null,null,null,null,null,null,null,null,0]
["2018-02-05",null,null,null,null,null,null,null,null,null,null,null,null,null,null,null,null,null,null,null,null,null,null,null,null,0]
["2018-02-06",null,null,null,null,null,null,null,null,null,null,null,null,null,null,null,null,null,null,null,null,null,null,null,null,0]
["2018-02-07",null,null,null,null,null,null,null,null,null,null,null,null,null,null,null,null,null,null,null,null,null,null,null,null,0]
["2018-02-08",null,null,null,null,null,null,null,null,null,null,null,null,null,null,null,null,null,null,null,null,null,null,null,null,0]
["2018-02-09",null,null,null,null,null,null,null,null,null,null,null,null,null,null,null,null,null,null,null,null,null,null,null,null,0]
["2018-02-10",null,null,null,null,null,null,null,null,null,null,null,null,null,null,null,null,null,null,null,null,null,null,null,null,0]
["2018-02-11",null,null,null,null,null,null,null,null,null,null,null,null,null,null,null,null,null,null,null,null,null,null,null,null,0]
["2018-02-12",null,null,null,null,null,null,null,null,null,null,null,null,null,null,null,null,null,null,null,null,null,null,null,null,0]
["2018-02-13",null,null,null,null,null,null,null,null,null,null,null,null,null,null,null,null,null,null,null,null,null,null,null,null,0]
["2018-02-14",null,null,null,null,null,null,null,null,null,null,"Поздравить жену с ДСВ!",null,null,null,null,null,null,null,null,null,null,null,null,null,1]
["2018-02-15",null,null,null,null,null,null,null,null,null,null,null,null,null,null,null,null,null,null,null,null,null,null,null,null,0]
["2018-02-16",null,null,null,null,null,null,null,null,null,null,null,null,null,null,null,null,null,null,null,null,null,null,null,null,0]
["2018-02-17",null,null,null,null,null,null,null,null,null,null,null,null,null,null,null,null,null,null,null,null,null,null,null,null,0]
["2018-02-18",null,null,null,null,null,null,null,null,null,null,null,null,null,null,null,null,null,null,null,null,null,null,null,null,0]
["2018-02-19",null,null,null,null,null,null,null,null,null,null,null,null,null,null,null,null,null,null,null,null,null,null,null,null,0]
["2018-02-20",null,null,null,null,null,null,null,null,null,null,null,null,null,null,null,null,null,null,null,null,null,null,null,null,0]
["2018-02-21",null,null,null,null,null,null,null,null,null,null,null,null,null,null,null,null,null,null,null,null,null,null,null,null,0]
["2018-02-22",null,null,null,null,null,null,null,null,null,null,null,null,null,null,null,null,null,null,null,null,null,null,null,null,0]
["2018-02-23",null,null,null,null,null,null,null,null,null,null,null,null,null,null,null,null,null,null,null,null,null,null,null,null,0]
["2018-02-24",null,null,null,null,null,null,null,null,null,null,null,null,null,null,null,null,null,null,null,null,null,null,null,null,0]
["2018-02-25",null,null,null,null,null,null,null,null,null,null,null,null,null,null,null,null,null,null,null,null,null,null,null,null,0]
["2018-02-26",null,null,null,null,null,null,null,null,null,null,null,null,null,null,null,null,null,null,null,null,null,null,null,null,0]
["2018-02-27",null,null,null,null,null,null,null,null,null,null,null,null,null,null,null,null,null,null,null,null,null,null,null,null,0]
["2018-02-28",null,null,null,null,null,null,null,null,null,null,null,null,null,null,null,null,null,null,null,null,null,null,null,null,0]
["2018-03-01",null,null,null,null,null,null,null,null,null,null,null,null,null,null,null,null,null,null,null,null,null,null,null,null,0]
["2018-03-02",null,null,null,null,null,null,null,null,null,null,null,null,null,null,null,null,null,null,null,null,null,null,null,null,0]
["2018-03-03",null,null,null,null,null,null,null,null,null,null,null,null,null,null,null,null,null,null,null,null,null,null,null,null,0]
["2018-03-04",null,null,null,null,null,null,null,null,null,null,null,null,null,null,null,null,null,null,null,null,null,null,null,null,0]
["2018-03-05",null,null,null,null,null,null,null,null,null,null,null,null,null,null,null,null,null,null,null,null,null,null,null,null,0]
["2018-03-06",null,null,null,null,null,null,null,null,null,null,null,null,null,null,null,null,null,null,null,null,null,null,null,null,0]
["2018-03-07",null,null,null,null,null,null,null,null,null,null,null,null,null,null,null,null,null,null,null,null,null,null,null,null,{"$f":"COUNTA(B67:Y67)","v":0}]
["2018-03-08",null,null,null,null,null,null,null,null,null,null,null,null,null,null,null,null,null,null,null,null,null,null,null,null,0]
["2018-03-09",null,null,null,null,null,null,null,null,null,null,null,null,null,null,null,null,null,null,null,null,null,null,null,null,0]
["2018-03-10",null,null,null,null,null,null,null,null,null,null,null,null,null,null,null,null,null,null,null,null,null,null,null,null,0]
["2018-03-11",null,null,null,null,null,null,null,null,null,null,null,null,null,null,null,null,null,null,null,null,null,null,null,null,0]
["2018-03-12",null,null,null,null,null,null,null,null,null,null,null,null,null,null,null,null,null,null,null,null,null,null,null,null,0]
["2018-03-13",null,null,null,null,null,null,null,null,null,null,null,null,null,null,null,null,null,null,null,null,null,null,null,null,0]
["2018-03-14",null,null,null,null,null,null,null,null,null,null,null,null,null,null,null,null,null,null,null,null,null,null,null,null,0]
["2018-03-15",null,null,null,null,null,null,null,null,null,null,null,null,null,null,null,null,null,null,null,null,null,null,null,null,0]
["2018-03-16",null,null,null,null,null,null,null,null,null,null,null,null,null,null,null,null,null,null,null,null,null,null,null,null,0]
["2018-03-17",null,null,null,null,null,null,null,null,null,null,null,null,null,null,null,null,null,null,null,null,null,null,null,null,0]
["2018-03-18",null,null,null,null,null,null,null,null,null,null,null,null,null,null,null,null,null,null,null,null,null,null,null,null,0]
["2018-03-19",null,null,null,null,null,null,null,null,null,null,null,null,null,null,null,null,null,null,null,null,null,null,null,null,0]
["2018-03-20",null,null,null,null,null,null,null,null,null,null,null,null,null,null,null,null,null,null,null,null,null,null,null,null,0]
["2018-03-21",null,null,null,null,null,null,null,null,null,null,null,null,null,null,null,null,null,null,null,null,null,null,null,null,0]
["2018-03-22",null,null,null,null,null,null,null,null,null,null,null,null,null,null,null,null,null,null,null,null,null,null,null,null,0]
["2018-03-23",null,null,null,null,null,null,null,null,null,null,null,null,null,null,null,null,null,null,null,null,null,null,null,null,0]
["2018-03-24",null,null,null,null,null,null,null,null,null,null,null,null,null,null,null,null,null,null,null,null,null,null,null,null,0]
["2018-03-25",null,null,null,null,null,null,null,null,null,null,null,null,null,null,null,null,null,null,null,null,null,null,null,null,0]
["2018-03-26",null,null,null,null,null,null,null,null,null,null,null,null,null,null,null,null,null,null,null,null,null,null,null,null,0]
["2018-03-27",null,null,null,null,null,null,null,null,null,null,null,null,null,null,null,null,null,null,null,null,null,null,null,null,0]
["2018-03-28",null,null,null,null,null,null,null,null,null,null,null,null,null,null,null,null,null,null,null,null,null,null,null,null,0]
["2018-03-29",null,null,null,null,null,null,null,null,null,null,null,null,null,null,null,null,null,null,null,null,null,null,null,null,0]
["2018-03-30",null,null,null,null,null,null,null,null,null,null,null,null,null,null,null,null,null,null,null,null,null,null,null,null,0]
["2018-03-31",null,null,null,null,null,null,null,null,null,null,null,null,null,null,null,null,null,null,null,null,null,null,null,null,0]
["2018-04-01",null,null,null,null,null,null,null,null,null,null,null,null,null,null,null,null,null,null,null,null,null,null,null,null,0]
["2018-04-02",null,null,null,null,null,null,null,null,null,null,null,null,null,null,null,null,null,null,null,null,null,null,null,null,0]
["2018-04-03",null,null,null,null,null,null,null,null,null,null,null,null,null,null,null,null,null,null,null,null,null,null,null,null,0]
["2018-04-04",null,null,null,null,null,null,null,null,null,null,null,null,null,null,null,null,null,null,null,null,null,null,null,null,0]
["2018-04-05",null,null,null,null,null,null,null,null,null,null,null,null,null,null,null,null,null,null,null,null,null,null,null,null,0]
["2018-04-06",null,null,null,null,null,null,null,null,null,null,null,null,null,null,null,null,null,null,null,null,null,null,null,null,0]
["2018-04-07",null,null,null,null,null,null,null,null,null,null,null,null,null,null,null,null,null,null,null,null,null,null,null,null,0]
["2018-04-08",null,null,null,null,null,null,null,null,null,null,null,null,null,null,null,null,null,null,null,null,null,null,null,null,0]
["2018-04-09",null,null,null,null,null,null,null,null,null,null,null,null,null,null,null,null,null,null,null,null,null,null,null,null,0]
["2018-04-10",null,null,null,null,null,null,null,null,null,null,null,null,null,null,null,null,null,null,null,null,null,null,null,null,0]
["2018-04-11",null,null,null,null,null,null,null,null,null,null,null,null,null,null,null,null,null,null,null,null,null,null,null,null,0]
["2018-04-12",null,null,null,null,null,null,null,null,null,null,null,null,null,null,null,null,null,null,null,null,null,null,null,null,0]
["2018-04-13",null,null,null,null,null,null,null,null,null,null,null,null,null,null,null,null,null,null,null,null,null,null,null,null,0]
["2018-04-14",null,null,null,null,null,null,null,null,null,null,null,null,null,null,null,null,null,null,null,null,null,null,null,null,0]
["2018-04-15",null,null,null,null,null,null,null,null,null,null,null,null,null,null,null,null,null,null,null,null,null,null,null,null,0]
["2018-04-16",null,null,null,null,null,null,null,null,null,null,null,null,null,null,null,null,null,null,null,null,null,null,null,null,0]
["2018-04-17",null,null,null,null,null,null,null,null,null,null,null,null,null,null,null,null,null,null,null,null,null,null,null,null,0]
["2018-04-18",null,null,null,null,null,null,null,null,null,null,null,null,null,null,null,null,null,null,null,null,null,null,null,null,0]
["2018-04-19",null,null,null,null,null,null,null,null,null,null,null,null,null,null,null,null,null,null,null,null,null,null,null,null,0]
["2018-04-20",null,null,null,null,null,null,null,null,null,null,null,null,null,null,null,null,null,null,null,null,null,null,null,null,0]
["2018-04-21",null,null,null,null,null,null,null,null,null,null,null,null,null,null,null,null,null,null,null,null,null,null,null,null,0]
["2018-04-22",null,null,null,null,null,null,null,null,null,null,null,null,null,null,null,null,null,null,null,null,null,null,null,null,0]
["2018-04-23",null,null,null,null,null,null,null,null,null,null,null,null,null,null,null,null,null,null,null,null,null,null,null,null,0]
["2018-04-24",null,null,null,null,null,null,null,null,null,null,null,null,null,null,null,null,null,null,null,null,null,null,null,null,0]
["2018-04-25",null,null,null,null,null,null,null,null,null,null,null,null,null,null,null,null,null,null,null,null,null,null,null,null,0]
["2018-04-26",null,null,null,null,null,null,null,null,null,null,null,null,null,null,null,null,null,null,null,null,null,null,null,null,0]
["2018-04-27",null,null,null,null,null,null,null,null,null,null,null,null,null,null,null,null,null,null,null,null,null,null,null,null,0]
["2018-04-28",null,null,null,null,null,null,null,null,null,null,null,null,null,null,null,null,null,null,null,null,null,null,null,null,0]
["2018-04-29",null,null,null,null,null,null,null,null,null,null,null,null,null,null,null,null,null,null,null,null,null,null,null,null,0]
["2018-04-30",null,null,null,null,null,null,null,null,null,null,null,null,null,null,null,null,null,null,null,null,null,null,null,null,0]
["2018-05-01",null,null,null,null,null,null,null,null,null,null,null,null,null,null,null,null,null,null,null,null,null,null,null,null,0]
["2018-05-02",null,null,null,null,null,null,null,null,null,null,null,null,null,null,null,null,null,null,null,null,null,null,null,null,0]
["2018-05-03",null,null,null,null,null,null,null,null,null,null,null,null,null,null,null,null,null,null,null,null,null,null,null,null,0]
["2018-05-04",null,null,null,null,null,null,null,null,null,null,null,null,null,null,null,null,null,null,null,null,null,null,null,null,0]
["2018-05-05",null,null,null,null,null,null,null,null,null,null,null,null,null,null,null,null,null,null,null,null,null,null,null,null,0]
["2018-05-06",null,null,null,null,null,null,null,null,null,null,null,null,null,null,null,null,null,null,null,null,null,null,null,null,0]
["2018-05-07",null,null,null,null,null,null,null,null,null,null,null,null,null,null,null,null,null,null,null,null,null,null,null,null,0]
["2018-05-08",null,null,null,null,null,null,null,null,null,null,null,null,null,null,null,null,null,null,null,null,null,null,null,null,0]
["2018-05-09",null,null,null,null,null,null,null,null,null,null,null,null,null,null,null,null,null,null,null,null,null,null,null,null,0]
["2018-05-10",null,null,null,null,null,null,null,null,null,null,null,null,null,null,null,null,null,null,null,null,null,null,null,null,{"$f":"COUNTA(B131:Y131)","v":0}]
["2018-05-11",null,null,null,null,null,null,null,null,null,null,null,null,null,null,null,null,null,null,null,null,null,null,null,null,0]
["2018-05-12",null,null,null,null,null,null,null,null,null,null,null,null,null,null,null,null,null,null,null,null,null,null,null,null,0]
["2018-05-13",null,null,null,null,null,null,null,null,null,null,null,null,null,null,null,null,null,null,null,null,null,null,null,null,0]
["2018-05-14",null,null,null,null,null,null,null,null,null,null,null,null,null,null,null,null,null,null,null,null,null,null,null,null,0]
["2018-05-15",null,null,null,null,null,null,null,null,null,null,null,null,null,null,null,null,null,null,null,null,null,null,null,null,0]
["2018-05-16",null,null,null,null,null,null,null,null,null,null,null,null,null,null,null,null,null,null,null,null,null,null,null,null,0]
["2018-05-17",null,null,null,null,null,null,null,null,null,null,null,null,null,null,null,null,null,null,null,null,null,null,null,null,0]
["2018-05-18",null,null,null,null,null,null,null,null,null,null,null,null,null,null,null,null,null,null,null,null,null,null,null,null,0]
["2018-05-19",null,null,null,null,null,null,null,null,null,null,null,null,null,null,null,null,null,null,null,null,null,null,null,null,0]
["2018-05-20",null,null,null,null,null,null,null,null,null,null,null,null,null,null,null,null,null,null,null,null,null,null,null,null,0]
["2018-05-21",null,null,null,null,null,null,null,null,null,null,null,null,null,null,null,null,null,null,null,null,null,null,null,null,0]
["2018-05-22",null,null,null,null,null,null,null,null,null,null,null,null,null,null,null,null,null,null,null,null,null,null,null,null,0]
["2018-05-23",null,null,null,null,null,null,null,null,null,null,null,null,null,null,null,null,null,null,null,null,null,null,null,null,0]
["2018-05-24",null,null,null,null,null,null,null,null,null,null,null,null,null,null,null,null,null,null,null,null,null,null,null,null,0]
["2018-05-25",null,null,null,null,null,null,null,null,null,null,null,null,null,null,null,null,null,null,null,null,null,null,null,null,0]
["2018-05-26",null,null,null,null,null,null,null,null,null,null,null,null,null,null,null,null,null,null,null,null,null,null,null,null,0]
["2018-05-27",null,null,null,null,null,null,null,null,null,null,null,null,null,null,null,null,null,null,null,null,null,null,null,null,0]
["2018-05-28",null,null,null,null,null,null,null,null,null,null,null,null,null,null,null,null,null,null,null,null,null,null,null,null,0]
["2018-05-29",null,null,null,null,null,null,null,null,null,null,null,null,null,null,null,null,null,null,null,null,null,null,null,null,0]
["2018-05-30",null,null,null,null,null,null,null,null,null,null,null,null,null,null,null,null,null,null,null,null,null,null,null,null,0]
["2018-05-31",null,null,null,null,null,null,null,null,null,null,null,null,null,null,null,null,null,null,null,null,null,null,null,null,0]
["2018-06-01",null,null,null,null,null,null,null,null,null,null,null,null,null,null,null,null,null,null,null,null,null,null,null,null,0]
["2018-06-02",null,null,null,null,null,null,null,null,null,null,null,null,null,null,null,null,null,null,null,null,null,null,null,null,0]
["2018-06-03",null,null,null,null,null,null,null,null,null,null,null,null,null,null,null,null,null,null,null,null,null,null,null,null,0]
["2018-06-04",null,null,null,null,null,null,null,null,null,null,null,null,null,null,null,null,null,null,null,null,null,null,null,null,0]
["2018-06-05",null,null,null,null,null,null,null,null,null,null,null,null,null,null,null,null,null,null,null,null,null,null,null,null,0]
["2018-06-06",null,null,null,null,null,null,null,null,null,null,null,null,null,null,null,null,null,null,null,null,null,null,null,null,0]
["2018-06-07",null,null,null,null,null,null,null,null,null,null,null,null,null,null,null,null,null,null,null,null,null,null,null,null,0]
["2018-06-08",null,null,null,null,null,null,null,null,null,null,null,null,null,null,null,null,null,null,null,null,null,null,null,null,0]
["2018-06-09",null,null,null,null,null,null,null,null,null,null,null,null,null,null,null,null,null,null,null,null,null,null,null,null,0]
["2018-06-10",null,null,null,null,null,null,null,null,null,null,null,null,null,null,null,null,null,null,null,null,null,null,null,null,0]
["2018-06-11",null,null,null,null,null,null,null,null,null,null,null,null,null,null,null,null,null,null,null,null,null,null,null,null,0]
["2018-06-12",null,null,null,null,null,null,null,null,null,null,null,null,null,null,null,null,null,null,null,null,null,null,null,null,0]
["2018-06-13",null,null,null,null,null,null,null,null,null,null,null,null,null,null,null,null,null,null,null,null,null,null,null,null,0]
["2018-06-14",null,null,null,null,null,null,null,null,null,null,null,null,null,null,null,null,null,null,null,null,null,null,null,null,0]
["2018-06-15",null,null,null,null,null,null,null,null,null,null,null,null,null,null,null,null,null,null,null,null,null,null,null,null,0]
["2018-06-16",null,null,null,null,null,null,null,null,null,null,null,null,null,null,null,null,null,null,null,null,null,null,null,null,0]
["2018-06-17",null,null,null,null,null,null,null,null,null,null,null,null,null,null,null,null,null,null,null,null,null,null,null,null,0]
["2018-06-18",null,null,null,null,null,null,null,null,null,null,null,null,null,null,null,null,null,null,null,null,null,null,null,null,0]
["2018-06-19",null,null,null,null,null,null,null,null,null,null,null,null,null,null,null,null,null,null,null,null,null,null,null,null,0]
["2018-06-20",null,null,null,null,null,null,null,null,null,null,null,null,null,null,null,null,null,null,null,null,null,null,null,null,0]
["2018-06-21",null,null,null,null,null,null,null,null,null,null,null,null,null,null,null,null,null,null,null,null,null,null,null,null,0]
["2018-06-22",null,null,null,null,null,null,null,null,null,null,null,null,null,null,null,null,null,null,null,null,null,null,null,null,0]
["2018-06-23",null,null,null,null,null,null,null,null,null,null,null,null,null,null,null,null,null,null,null,null,null,null,null,null,0]
["2018-06-24",null,null,null,null,null,null,null,null,null,null,null,null,null,null,null,null,null,null,null,null,null,null,null,null,0]
["2018-06-25",null,null,null,null,null,null,null,null,null,null,null,null,null,null,null,null,null,null,null,null,null,null,null,null,0]
["2018-06-26",null,null,null,null,null,null,null,null,null,null,null,null,null,null,null,null,null,null,null,null,null,null,null,null,0]
["2018-06-27",null,null,null,null,null,null,null,null,null,null,null,null,null,null,null,null,null,null,null,null,null,null,null,null,0]
["2018-06-28",null,null,null,null,null,null,null,null,null,null,null,null,null,null,null,null,null,null,null,null,null,null,null,null,0]
["2018-06-29",null,null,null,null,null,null,null,null,null,null,null,null,null,null,null,null,null,null,null,null,null,null,null,null,0]
["2018-06-30",null,null,null,null,null,null,null,null,null,null,null,null,null,null,null,null,null,null,null,null,null,null,null,null,0]
["2018-07-01",null,null,null,null,null,null,null,null,null,null,null,null,null,null,null,null,null,null,null,null,null,null,null,null,0]
["2018-07-02",null,null,null,null,null,null,null,null,null,null,null,null,null,null,null,null,null,null,null,null,null,null,null,null,0]
["2018-07-03",null,null,null,null,null,null,null,null,null,null,null,null,null,null,null,null,null,null,null,null,null,null,null,null,0]
["2018-07-04",null,null,null,null,null,null,null,null,null,null,null,null,null,null,null,null,null,null,null,null,null,null,null,null,0]
["2018-07-05",null,null,null,null,null,null,null,null,null,null,null,null,null,null,null,null,null,null,null,null,null,null,null,null,0]
["2018-07-06",null,null,null,null,null,null,null,null,null,null,null,null,null,null,null,null,null,null,null,null,null,null,null,null,0]
["2018-07-07",null,null,null,null,null,null,null,null,null,null,null,null,null,null,null,null,null,null,null,null,null,null,null,null,0]
["2018-07-08",null,null,null,null,null,null,null,null,null,null,null,null,null,null,null,null,null,null,null,null,null,null,null,null,0]
["2018-07-09",null,null,null,null,null,null,null,null,null,null,null,null,null,null,null,null,null,null,null,null,null,null,null,null,0]
["2018-07-10",null,null,null,null,null,null,null,null,null,null,null,null,null,null,null,null,null,null,null,null,null,null,null,null,0]
["2018-07-11",null,null,null,null,null,null,null,null,null,null,null,null,null,null,null,null,null,null,null,null,null,null,null,null,0]
["2018-07-12",null,null,null,null,null,null,null,null,null,null,null,null,null,null,null,null,null,null,null,null,null,null,null,null,0]
["2018-07-13",null,null,null,null,null,null,null,null,null,null,null,null,null,null,null,null,null,null,null,null,null,null,null,null,{"$f":"COUNTA(B195:Y195)","v":0}]
["2018-07-14",null,null,null,null,null,null,null,null,null,null,null,null,null,null,null,null,null,null,null,null,null,null,null,null,0]
["2018-07-15",null,null,null,null,null,null,null,null,null,null,null,null,null,null,null,null,null,null,null,null,null,null,null,null,0]
["2018-07-16",null,null,null,null,null,null,null,null,null,null,null,null,null,null,null,null,null,null,null,null,null,null,null,null,0]
["2018-07-17",null,null,null,null,null,null,null,null,null,null,null,null,null,null,null,null,null,null,null,null,null,null,null,null,0]
["2018-07-18",null,null,null,null,null,null,null,null,null,null,null,null,null,null,null,null,null,null,null,null,null,null,null,null,0]
["2018-07-19",null,null,null,null,null,null,null,null,null,null,null,null,null,null,null,null,null,null,null,null,null,null,null,null,0]
["2018-07-20",null,null,null,null,null,null,null,null,null,null,null,null,null,null,null,null,null,null,null,null,null,null,null,null,0]
["2018-07-21",null,null,null,null,null,null,null,null,null,null,null,null,null,null,null,null,null,null,null,null,null,null,null,null,0]
["2018-07-22",null,null,null,null,null,null,null,null,null,null,null,null,null,null,null,null,null,null,null,null,null,null,null,null,0]
["2018-07-23",null,null,null,null,null,null,null,null,null,null,null,null,null,null,null,null,null,null,null,null,null,null,null,null,0]
["2018-07-24",null,null,null,null,null,null,null,null,null,null,null,null,null,null,null,null,null,null,null,null,null,null,null,null,0]
["2018-07-25",null,null,null,null,null,null,null,null,null,null,null,null,null,null,null,null,null,null,null,null,null,null,null,null,0]
["2018-07-26",null,null,null,null,null,null,null,null,null,null,null,null,null,null,null,null,null,null,null,null,null,null,null,null,0]
["2018-07-27",null,null,null,null,null,null,null,null,null,null,null,null,null,null,null,null,null,null,null,null,null,null,null,null,0]
["2018-07-28",null,null,null,null,null,null,null,null,null,null,null,null,null,null,null,null,null,null,null,null,null,null,null,null,0]
["2018-07-29",null,null,null,null,null,null,null,null,null,null,null,null,null,null,null,null,null,null,null,null,null,null,null,null,0]
["2018-07-30",null,null,null,null,null,null,null,null,null,null,null,null,null,null,null,null,null,null,null,null,null,null,null,null,0]
["2018-07-31",null,null,null,null,null,null,null,null,null,null,null,null,null,null,null,null,null,null,null,null,null,null,null,null,0]
["2018-08-01",null,null,null,null,null,null,null,null,null,null,null,null,null,null,null,null,null,null,null,null,null,null,null,null,0]
["2018-08-02",null,null,null,null,null,null,null,null,null,null,null,null,null,null,null,null,null,null,null,null,null,null,null,null,0]
["2018-08-03",null,null,null,null,null,null,null,null,null,null,null,null,null,null,null,null,null,null,null,null,null,null,null,null,0]
["2018-08-04",null,null,null,null,null,null,null,null,null,null,null,null,null,null,null,null,null,null,null,null,null,null,null,null,0]
["2018-08-05",null,null,null,null,null,null,null,null,null,null,null,null,null,null,null,null,null,null,null,null,null,null,null,null,0]
["2018-08-06",null,null,null,null,null,null,null,null,null,null,null,null,null,null,null,null,null,null,null,null,null,null,null,null,0]
["2018-08-07",null,null,null,null,null,null,null,null,null,null,null,null,null,null,null,null,null,null,null,null,null,null,null,null,0]
["2018-08-08",null,null,null,null,null,null,null,null,null,null,null,null,null,null,null,null,null,null,null,null,null,null,null,null,0]
["2018-08-09",null,null,null,null,null,null,null,null,null,null,null,null,null,null,null,null,null,null,null,null,null,null,null,null,0]
["2018-08-10",null,null,null,null,null,null,null,null,null,null,null,null,null,null,null,null,null,null,null,null,null,null,null,null,0]
["2018-08-11",null,null,null,null,null,null,null,null,null,null,null,null,null,null,null,null,null,null,null,null,null,null,null,null,0]
["2018-08-12",null,null,null,null,null,null,null,null,null,null,null,null,null,null,null,null,null,null,null,null,null,null,null,null,0]
["2018-08-13",null,null,null,null,null,null,null,null,null,null,null,null,null,null,null,null,null,null,null,null,null,null,null,null,0]
["2018-08-14",null,null,null,null,null,null,null,null,null,null,null,null,null,null,null,null,null,null,null,null,null,null,null,null,0]
["2018-08-15",null,null,null,null,null,null,null,null,null,null,null,null,null,null,null,null,null,null,null,null,null,null,null,null,0]
["2018-08-16",null,null,null,null,null,null,null,null,null,null,null,null,null,null,null,null,null,null,null,null,null,null,null,null,0]
["2018-08-17",null,null,null,null,null,null,null,null,null,null,null,null,null,null,null,null,null,null,null,null,null,null,null,null,0]
["2018-08-18",null,null,null,null,null,null,null,null,null,null,null,null,null,null,null,null,null,null,null,null,null,null,null,null,0]
["2018-08-19",null,null,null,null,null,null,null,null,null,null,null,null,null,null,null,null,null,null,null,null,null,null,null,null,0]
["2018-08-20",null,null,null,null,null,null,null,null,null,null,null,null,null,null,null,null,null,null,null,null,null,null,null,null,0]
["2018-08-21",null,null,null,null,null,null,null,null,null,null,null,null,null,null,null,null,null,null,null,null,null,null,null,null,0]
["2018-08-22",null,null,null,null,null,null,null,null,null,null,null,null,null,null,null,null,null,null,null,null,null,null,null,null,0]
["2018-08-23",null,null,null,null,null,null,null,null,null,null,null,null,null,null,null,null,null,null,null,null,null,null,null,null,0]
["2018-08-24",null,null,null,null,null,null,null,null,null,null,null,null,null,null,null,null,null,null,null,null,null,null,null,null,0]
["2018-08-25",null,null,null,null,null,null,null,null,null,null,null,null,null,null,null,null,null,null,null,null,null,null,null,null,0]
["2018-08-26",null,null,null,null,null,null,null,null,null,null,null,null,null,null,null,null,null,null,null,null,null,null,null,null,0]
["2018-08-27",null,null,null,null,null,null,null,null,null,null,null,null,null,null,null,null,null,null,null,null,null,null,null,null,0]
["2018-08-28",null,null,null,null,null,null,null,null,null,null,null,null,null,null,null,null,null,null,null,null,null,null,null,null,0]
["2018-08-29",null,null,null,null,null,null,null,null,null,null,null,null,null,null,null,null,null,null,null,null,null,null,null,null,0]
["2018-08-30",null,null,null,null,null,null,null,null,null,null,null,null,null,null,null,null,null,null,null,null,null,null,null,null,0]
["2018-08-31",null,null,null,null,null,null,null,null,null,null,null,null,null,null,null,null,null,null,null,null,null,null,null,null,0]
["2018-09-01",null,null,null,null,null,null,null,null,null,null,null,null,null,null,null,null,null,null,null,null,null,null,null,null,0]
["2018-09-02",null,null,null,null,null,null,null,null,null,null,null,null,null,null,null,null,null,null,null,null,null,null,null,null,0]
["2018-09-03",null,null,null,null,null,null,null,null,null,null,null,null,null,null,null,null,null,null,null,null,null,null,null,null,0]
["2018-09-04",null,null,null,null,null,null,null,null,null,null,null,null,null,null,null,null,null,null,null,null,null,null,null,null,0]
["2018-09-05",null,null,null,null,null,null,null,null,null,null,null,null,null,null,null,null,null,null,null,null,null,null,null,null,0]
["2018-09-06",null,null,null,null,null,null,null,null,null,null,null,null,null,null,null,null,null,null,null,null,null,null,null,null,0]
["2018-09-07",null,null,null,null,null,null,null,null,null,null,null,null,null,null,null,null,null,null,null,null,null,null,null,null,0]
["2018-09-08",null,null,null,null,null,null,null,null,null,null,null,null,null,null,null,null,null,null,null,null,null,null,null,null,0]
["2018-09-09",null,null,null,null,null,null,null,null,null,null,null,null,null,null,null,null,null,null,null,null,null,null,null,null,0]
["2018-09-10",null,null,null,null,null,null,null,null,null,null,null,null,null,null,null,null,null,null,null,null,null,null,null,null,0]
["2018-09-11",null,null,null,null,null,null,null,null,null,null,null,null,null,null,null,null,null,null,null,null,null,null,null,null,0]
["2018-09-12",null,null,null,null,null,null,null,null,null,null,null,null,null,null,null,null,null,null,null,null,null,null,null,null,0]
["2018-09-13",null,null,null,null,null,null,null,null,null,null,null,null,null,null,null,null,null,null,null,null,null,null,null,null,0]
["2018-09-14",null,null,null,null,null,null,null,null,null,null,null,null,null,null,null,null,null,null,null,null,null,null,null,null,0]
["2018-09-15",null,null,null,null,null,null,null,null,null,null,null,null,null,null,null,null,null,null,null,null,null,null,null,null,{"$f":"COUNTA(B259:Y259)","v":0}]
["2018-09-16",null,null,null,null,null,null,null,null,null,null,null,null,null,null,null,null,null,null,null,null,null,null,null,null,0]
["2018-09-17",null,null,null,null,null,null,null,null,null,null,null,null,null,null,null,null,null,null,null,null,null,null,null,null,0]
["2018-09-18",null,null,null,null,null,null,null,null,null,null,null,null,null,null,null,null,null,null,null,null,null,null,null,null,0]
["2018-09-19",null,null,null,null,null,null,null,null,null,null,null,null,null,null,null,null,null,null,null,null,null,null,null,null,0]
["2018-09-20",null,null,null,null,null,null,null,null,null,null,null,null,null,null,null,null,null,null,null,null,null,null,null,null,0]
["2018-09-21",null,null,null,null,null,null,null,null,null,null,null,null,null,null,null,null,null,null,null,null,null,null,null,null,0]
["2018-09-22",null,null,null,null,null,null,null,null,null,null,null,null,null,null,null,null,null,null,null,null,null,null,null,null,0]
["2018-09-23",null,null,null,null,null,null,null,null,null,null,null,null,null,null,null,null,null,null,null,null,null,null,null,null,0]
["2018-09-24",null,null,null,null,null,null,null,null,null,null,null,null,null,null,null,null,null,null,null,null,null,null,null,null,0]
["2018-09-25",null,null,null,null,null,null,null,null,null,null,null,null,null,null,null,null,null,null,null,null,null,null,null,null,0]
["2018-09-26",null,null,null,null,null,null,null,null,null,null,null,null,null,null,null,null,null,null,null,null,null,null,null,null,0]
["2018-09-27",null,null,null,null,null,null,null,null,null,null,null,null,null,null,null,null,null,null,null,null,null,null,null,null,0]
["2018-09-28",null,null,null,null,null,null,null,null,null,null,null,null,null,null,null,null,null,null,null,null,null,null,null,null,0]
["2018-09-29",null,null,null,null,null,null,null,null,null,null,null,null,null,null,null,null,null,null,null,null,null,null,null,null,0]
["2018-09-30",null,null,null,null,null,null,null,null,null,null,null,null,null,null,null,null,null,null,null,null,null,null,null,null,0]
["2018-10-01",null,null,null,null,null,null,null,null,null,null,null,null,null,null,null,null,null,null,null,null,null,null,null,null,0]
["2018-10-02",null,null,null,null,null,null,null,null,null,null,null,null,null,null,null,null,null,null,null,null,null,null,null,null,0]
["2018-10-03",null,null,null,null,null,null,null,null,null,null,null,null,null,null,null,null,null,null,null,null,null,null,null,null,0]
["2018-10-04",null,null,null,null,null,null,null,null,null,null,null,null,null,null,null,null,null,null,null,null,null,null,null,null,0]
["2018-10-05",null,null,null,null,null,null,null,null,null,null,null,null,null,null,null,null,null,null,null,null,null,null,null,null,0]
["2018-10-06",null,null,null,null,null,null,null,null,null,null,null,null,null,null,null,null,null,null,null,null,null,null,null,null,0]
["2018-10-07",null,null,null,null,null,null,null,null,null,null,null,null,null,null,null,null,null,null,null,null,null,null,null,null,0]
["2018-10-08",null,null,null,null,null,null,null,null,null,null,null,null,null,null,null,null,null,null,null,null,null,null,null,null,0]
["2018-10-09",null,null,null,null,null,null,null,null,null,null,null,null,null,null,null,null,null,null,null,null,null,null,null,null,0]
["2018-10-10",null,null,null,null,null,null,null,null,null,null,null,null,null,null,null,null,null,null,null,null,null,null,null,null,0]
["2018-10-11",null,null,null,null,null,null,null,null,null,null,null,null,null,null,null,null,null,null,null,null,null,null,null,null,0]
["2018-10-12",null,null,null,null,null,null,null,null,null,null,null,null,null,null,null,null,null,null,null,null,null,null,null,null,0]
["2018-10-13",null,null,null,null,null,null,null,null,null,null,null,null,null,null,null,null,null,null,null,null,null,null,null,null,0]
["2018-10-14",null,null,null,null,null,null,null,null,null,null,null,null,null,null,null,null,null,null,null,null,null,null,null,null,0]
["2018-10-15",null,null,null,null,null,null,null,null,null,null,null,null,null,null,null,null,null,null,null,null,null,null,null,null,0]
["2018-10-16",null,null,null,null,null,null,null,null,null,null,null,null,null,null,null,null,null,null,null,null,null,null,null,null,0]
["2018-10-17",null,null,null,null,null,null,null,null,null,null,null,null,null,null,null,null,null,null,null,null,null,null,null,null,0]
["2018-10-18",null,null,null,null,null,null,null,null,null,null,null,null,null,null,null,null,null,null,null,null,null,null,null,null,0]
["2018-10-19",null,null,null,null,null,null,null,null,null,null,null,null,null,null,null,null,null,null,null,null,null,null,null,null,0]
["2018-10-20",null,null,null,null,null,null,null,null,null,null,null,null,null,null,null,null,null,null,null,null,null,null,null,null,0]
["2018-10-21",null,null,null,null,null,null,null,null,null,null,null,null,null,null,null,null,null,null,null,null,null,null,null,null,0]
["2018-10-22",null,null,null,null,null,null,null,null,null,null,null,null,null,null,null,null,null,null,null,null,null,null,null,null,0]
["2018-10-23",null,null,null,null,null,null,null,null,null,null,null,null,null,null,null,null,null,null,null,null,null,null,null,null,0]
["2018-10-24",null,null,null,null,null,null,null,null,null,null,null,null,null,null,null,null,null,null,null,null,null,null,null,null,0]
["2018-10-25",null,null,null,null,null,null,null,null,null,null,null,null,null,null,null,null,null,null,null,null,null,null,null,null,0]
["2018-10-26",null,null,null,null,null,null,null,null,null,null,null,null,null,null,null,null,null,null,null,null,null,null,null,null,0]
["2018-10-27",null,null,null,null,null,null,null,null,null,null,null,null,null,null,null,null,null,null,null,null,null,null,null,null,0]
["2018-10-28",null,null,null,null,null,null,null,null,null,null,null,null,null,null,null,null,null,null,null,null,null,null,null,null,0]
["2018-10-29",null,null,null,null,null,null,null,null,null,null,null,null,null,null,null,null,null,null,null,null,null,null,null,null,0]
["2018-10-30",null,null,null,null,null,null,null,null,null,null,null,null,null,null,null,null,null,null,null,null,null,null,null,null,0]
["2018-10-31",null,null,null,null,null,null,null,null,null,null,null,null,null,null,null,null,null,null,null,null,null,null,null,null,0]
["2018-11-01",null,null,null,null,null,null,null,null,null,null,null,null,null,null,null,null,null,null,null,null,null,null,null,null,0]
["2018-11-02",null,null,null,null,null,null,null,null,null,null,null,null,null,null,null,null,null,null,null,null,null,null,null,null,0]
["2018-11-03",null,null,null,null,null,null,null,null,null,null,null,null,null,null,null,null,null,null,null,null,null,null,null,null,0]
["2018-11-04",null,null,null,null,null,null,null,null,null,null,null,null,null,null,null,null,null,null,null,null,null,null,null,null,0]
["2018-11-05",null,null,null,null,null,null,null,null,null,null,null,null,null,null,null,null,null,null,null,null,null,null,null,null,0]
["2018-11-06",null,null,null,null,null,null,null,null,null,null,null,null,null,null,null,null,null,null,null,null,null,null,null,null,0]
["2018-11-07",null,null,null,null,null,null,null,null,null,null,null,null,null,null,null,null,null,null,null,null,null,null,null,null,0]
["2018-11-08",null,null,null,null,null,null,null,null,null,null,null,null,null,null,null,null,null,null,null,null,null,null,null,null,0]
["2018-11-09",null,null,null,null,null,null,null,null,null,null,null,null,null,null,null,null,null,null,null,null,null,null,null,null,0]
["2018-11-10",null,null,null,null,null,null,null,null,null,null,null,null,null,null,null,null,null,null,null,null,null,null,null,null,0]
["2018-11-11",null,null,null,null,null,null,null,null,null,null,null,null,null,null,null,null,null,null,null,null,null,null,null,null,0]
["2018-11-12",null,null,null,null,null,null,null,null,null,null,null,null,null,null,null,null,null,null,null,null,null,null,null,null,0]
["2018-11-13",null,null,null,null,null,null,null,null,null,null,null,null,null,null,null,null,null,null,null,null,null,null,null,null,0]
["2018-11-14",null,null,null,null,null,null,null,null,null,null,null,null,null,null,null,null,null,null,null,null,null,null,null,null,0]
["2018-11-15",null,null,null,null,null,null,null,null,null,null,null,null,null,null,null,null,null,null,null,null,null,null,null,null,0]
["2018-11-16",null,null,null,null,null,null,null,null,null,null,null,null,null,null,null,null,null,null,null,null,null,null,null,null,0]
["2018-11-17",null,null,null,null,null,null,null,null,null,null,null,null,null,null,null,null,null,null,null,null,null,null,null,null,0]
["2018-11-18",null,null,null,null,null,null,null,null,null,null,null,null,null,null,null,null,null,null,null,null,null,null,null,null,{"$f":"COUNTA(B323:Y323)","v":0}]
["2018-11-19",null,null,null,null,null,null,null,null,null,null,null,null,null,null,null,null,null,null,null,null,null,null,null,null,0]
["2018-11-20",null,null,null,null,null,null,null,null,null,null,null,null,null,null,null,null,null,null,null,null,null,null,null,null,0]
["2018-11-21",null,null,null,null,null,null,null,null,null,null,null,null,null,null,null,null,null,null,null,null,null,null,null,null,0]
["2018-11-22",null,null,null,null,null,null,null,null,null,null,null,null,null,null,null,null,null,null,null,null,null,null,null,null,0]
["2018-11-23",null,null,null,null,null,null,null,null,null,null,null,null,null,null,null,null,null,null,null,null,null,null,null,null,0]
["2018-11-24",null,null,null,null,null,null,null,null,null,null,null,null,null,null,null,null,null,null,null,null,null,null,null,null,0]
["2018-11-25",null,null,null,null,null,null,null,null,null,null,null,null,null,null,null,null,null,null,null,null,null,null,null,null,0]
["2018-11-26",null,null,null,null,null,null,null,null,null,null,null,null,null,null,null,null,null,null,null,null,null,null,null,null,0]
["2018-11-27",null,null,null,null,null,null,null,null,null,null,null,null,null,null,null,null,null,null,null,null,null,null,null,null,0]
["2018-11-28",null,null,null,null,null,null,null,null,null,null,null,null,null,null,null,null,null,null,null,null,null,null,null,null,0]
["2018-11-29",null,null,null,null,null,null,null,null,null,null,null,null,null,null,null,null,null,null,null,null,null,null,null,null,0]
["2018-11-30",null,null,null,null,null,null,null,null,null,null,null,null,null,null,null,null,null,null,null,null,null,null,null,null,0]
["2018-12-01",null,null,null,null,null,null,null,null,null,null,null,null,null,null,null,null,null,null,null,null,null,null,null,null,0]
["2018-12-02",null,null,null,null,null,null,null,null,null,null,null,null,null,null,null,null,null,null,null,null,null,null,null,null,0]
["2018-12-03",null,null,null,null,null,null,null,null,null,null,null,null,null,null,null,null,null,null,null,null,null,null,null,null,0]
["2018-12-04",null,null,null,null,null,null,null,null,null,null,null,null,null,null,null,null,null,null,null,null,null,null,null,null,0]
["2018-12-05",null,null,null,null,null,null,null,null,null,null,null,null,null,null,null,null,null,null,null,null,null,null,null,null,0]
["2018-12-06",null,null,null,null,null,null,null,null,null,null,null,null,null,null,null,null,null,null,null,null,null,null,null,null,0]
["2018-12-07",null,null,null,null,null,null,null,null,null,null,null,null,null,null,null,null,null,null,null,null,null,null,null,null,0]
["2018-12-08",null,null,null,null,null,null,null,null,null,null,null,null,null,null,null,null,null,null,null,null,null,null,null,null,0]
["2018-12-09",null,null,null,null,null,null,null,null,null,null,null,null,null,null,null,null,null,null,null,null,null,null,null,null,0]
["2018-12-10",null,null,null,null,null,null,null,null,null,null,null,null,null,null,null,null,null,null,null,null,null,null,null,null,0]
["2018-12-11",null,null,null,null,null,null,null,null,null,null,null,null,null,null,null,null,null,null,null,null,null,null,null,null,0]
["2018-12-12",null,null,null,null,null,null,null,null,null,null,null,null,null,null,null,null,null,null,null,null,null,null,null,null,0]
["2018-12-13",null,null,null,null,null,null,null,null,null,null,null,null,null,null,null,null,null,null,null,null,null,null,null,null,0]
["2018-12-14",null,null,null,null,null,null,null,null,null,null,null,null,null,null,null,null,null,null,null,null,null,null,null,null,0]
["2018-12-15",null,null,null,null,null,null,null,null,null,null,null,null,null,null,null,null,null,null,null,null,null,null,null,null,0]
["2018-12-16",null,null,null,null,null,null,null,null,null,null,null,null,null,null,null,null,null,null,null,null,null,null,null,null,0]
["2018-12-17",null,null,null,null,null,null,null,null,null,null,null,null,null,null,null,null,null,null,null,null,null,null,null,null,0]
["2018-12-18",null,null,null,null,null,null,null,null,null,null,null,null,null,null,null,null,null,null,null,null,null,null,null,null,0]
["2018-12-19",null,null,null,null,null,null,null,null,null,null,null,null,null,null,null,null,null,null,null,null,null,null,null,null,0]
["2018-12-20",null,null,null,null,null,null,null,null,null,null,null,null,null,null,null,null,null,null,null,null,null,null,null,null,0]
["2018-12-21",null,null,null,null,null,null,null,null,null,null,null,null,null,null,null,null,null,null,null,null,null,null,null,null,0]
["2018-12-22",null,null,null,null,null,null,null,null,null,null,null,null,null,null,null,null,null,null,null,null,null,null,null,null,0]
["2018-12-23",null,null,null,null,null,null,null,null,null,null,null,null,null,null,null,null,null,null,null,null,null,null,null,null,0]
["2018-12-24",null,null,null,null,null,null,null,null,null,null,null,null,null,null,null,null,null,null,null,null,null,null,null,null,0]
["2018-12-25",null,null,null,null,null,null,null,null,null,null,null,null,null,null,null,null,null,null,null,null,null,null,null,null,0]
["2018-12-26",null,null,null,null,null,null,null,null,null,null,null,null,null,null,null,null,null,null,null,null,null,null,null,null,0]
["2018-12-27",null,null,null,null,null,null,null,null,null,null,null,null,null,null,null,null,null,null,null,null,null,null,null,null,0]
["2018-12-28",null,null,null,null,null,null,null,null,null,null,null,null,null,null,null,null,null,null,null,null,null,null,null,null,0]
["2018-12-29",null,null,null,null,null,null,null,null,null,null,null,null,null,null,null,null,null,null,null,null,null,null,null,null,0]
["2018-12-30",null,null,null,null,null,null,null,null,null,null,null,null,null,null,null,null,null,null,null,null,null,null,null,null,0]
["2018-12-31",null,null,null,null,null,null,null,null,null,null,null,null,null,null,null,null,null,null,null,null,null,null,null,null,0]

{"sheet":"Нормы раб.времени","index":3,"n_rows":35,"n_cols":7,"rows_kept":35,"cut":false,"hidden":false,"merged":[[3,1,3,3],[3,4,3,6]]}
["Нормы рабочего времени на 2018 год"]
[]
[]
[null,"Количество дней",null,null,"Рабочее время в часах при рабочей неделе"]
[null,"календарных","рабочих","выходных и праздничных","40-часовой","36-часовой","24-часовой"]
["Январь",31,17,14,136,122.4,81.599999999999994]
["Февраль",28,19,9,151,135.80000000000001,90.2]
["Март",31,20,11,159,143,95]
["1 квартал",{"$f":"SUM(B6:B8)","v":90},56,34,446,401.20000000000005,266.8]
["Апрель",30,21,9,167,150.19999999999999,99.8]
["Май",31,20,11,159,143,95]
["Июнь",30,20,10,159,143,95]
["2 квартал",{"$f":"SUM(B10:B12)","v":91},61,30,485,436.2,289.8]
["1 полугодие",{"$f":"B9+B13","v":181},117,64,931,837.40000000000009,556.6]
["Июль",31,22,9,176,158.4,105.6]
["Август",31,23,8,184,165.6,110.4]
["Сентябрь",30,20,10,160,144,96]
["3 квартал",{"$f":"SUM(B15:B17)","v":92},65,27,520,468,312]
["Октябрь",31,23,8,184,165.6,110.4]
["Ноябрь",30,21,9,168,151.19999999999999,100.8]
["Декабрь",31,21,10,167,150.19999999999999,99.8]
["4 квартал",{"$f":"SUM(B19:B21)","v":92},65,27,519,466.99999999999994,311]
["2 полугодие",{"$f":"B18+B22","v":184},130,54,1039,935,623]
["Весь год",{"$f":"B14+B23","v":365},247,118,1970,1772.4,1179.5999999999999]
[]
[]
[]
["Переносы выходных дней и праздников в 2018 году"]
["Откуда",null,"Куда"]
["2018-01-06",null,"2018-03-09"]
["2018-01-07",null,"2018-05-02"]
["2018-04-28",null,"2018-04-30"]
["2018-06-09",null,"2018-06-11"]
["2018-11-04",null,"2018-11-05"]
["2018-12-29",null,"2018-12-31"]

{"sheet":"Праздники","index":4,"n_rows":91,"n_cols":2,"rows_kept":91,"cut":false,"hidden":false,"merged":[]}
["2018-01-01","Новый год"]
["2018-01-07","Рождество Христово"]
["2018-01-11","День заповедников"]
["2018-01-12","День работника прокуратуры РФ"]
["2018-01-13","Старый Новый Год"]
["2018-01-13","День Российской печати"]
["2018-01-21","День инженерных войск"]
["2018-01-25","День студентов \"Татьянин День\""]
["2018-01-25","День штурмана ВМФ"]
["2018-02-23","День защитника Отечества"]
["2018-02-08","День российской науки"]
["2018-02-10","День дипломатического работника"]
["2018-02-14","День всех влюбленных \"День Святого Валентина\""]
["2018-03-08","Международный женский день"]
["2018-03-10","День архивов"]
["2018-03-12","День работников уголовно-исправительной системы МинЮста России"]
["2018-03-18","День налоговой полиции"]
["2018-03-27","День войск национальной гвардии РФ"]
["2018-04-01","День смеха / День дурака"]
["2018-04-02","День единения народов Беларуси и России"]
["2018-04-03","День Геолога"]
["2018-04-12","Всемирный день авиации и космонавтики"]
["2018-04-30","День пожарной охраны"]
["2018-05-01","Праздник весны и труда"]
["2018-05-09","День Победы"]
["2018-05-07","День Радио"]
["2018-05-27","Всероссийский день библиотек"]
["2018-05-28","День Пограничника"]
["2018-06-12","День России"]
["2018-06-05","День Мелиоратора"]
["2018-06-06","Пушкинский день России"]
["2018-06-08","День социального Работника"]
["2018-06-12","День работников легкой промышленности"]
["2018-06-22","День памяти и скорби"]
["2018-06-25","День Изобретателя и рационализатора"]
["2018-06-25","День дружбы и единения славян"]
["2018-06-27","День молодежи России"]
["2018-07-03","День ГИБДД"]
["2018-07-10","Российской почты"]
["2018-07-17","День Металлурга"]
["2018-07-24","День работника торговли"]
["2018-07-28","День PR-специалиста"]
["2018-07-29","День Военно-Морского Флота России"]
["2018-08-01","День инкассатора"]
["2018-08-01","День тыла Вооруженных Сил РФ"]
["2018-08-02","День Воздушно-Десантных войск (ВДВ)"]
["2018-08-06","День Железнодорожных войск"]
["2018-08-07","День Железнодорожника"]
["2018-08-12","День Военно-Воздушных сил (ВВС)"]
["2018-08-14","День Строителя"]
["2018-08-22","День Государственного флага РФ"]
["2018-08-27","День кино России"]
["2018-09-01","День Знаний"]
["2018-09-02","День российской гвардии"]
["2018-09-03","День солидарности в борьбе с терроризмом"]
["2018-09-18","День работников Леса"]
["2018-09-27","День воспитателя"]
["2018-09-30","День Интернета России (Рунета)"]
["2018-10-01","Международный день пожилых людей"]
["2018-10-04","День военно-космических сил России"]
["2018-10-04","День восйск гражданской обороны МЧС РФ"]
["2018-10-05","День Учителя"]
["2018-10-05","День работников уголовного розыска"]
["2018-10-06","День российского страховщика"]
["2018-10-20","День войск связи вооруженных сил РФ"]
["2018-10-24","День соединений и частей специального назначения"]
["2018-10-25","День таможенника РФ"]
["2018-10-29","День работников службы вневедомственной охраны МВД"]
["2018-10-30","День автомобилиста"]
["2018-10-30","День инженера-механика"]
["2018-10-30","День памяти жерв политических репрессий"]
["2018-11-04","День народного единства"]
["2018-11-05","День военного разведчика"]
["2018-11-06","День судебного пристава"]
["2018-11-07","День Октябрьской революции 1917 года"]
["2018-11-10","День Милиции"]
["2018-11-11","День памяти погибших в первой мировой войне"]
["2018-11-13","День войск радиационной, химической и биологической защиты"]
["2018-11-15","Всероссийский день призывника"]
["2018-11-19","День ракетных войск и артиллерии"]
["2018-11-21","День работника налоговых органов"]
["2018-11-27","День Матери России (День Матерей)"]
["2018-11-27","День оценщика"]
["2018-11-27","День Морской пехоты"]
["2018-12-04","День информатики"]
["2018-12-15","День памяти журналистов, погибших при исполнении профессиональных обязанностей"]
["2018-12-17","День ракетных войск стратегического назначения. День военно-космических сил."]
["2018-12-20","День работника органов государственной безопасности (ФСБ)"]
["2018-12-22","День Энергетика"]
["2018-12-23","День Дальней авиации ВВС России"]
["2018-12-27","День спасателя Россиской Федерации"]